[Event "Late-Titled-Tuesday-Blitz-February-27-2024"]
[Site "Chess.com"]
[Date "2024.02.27"]
[Round "10"]
[White "chess94cu"]
[Black "RantomOpening"]
[Result "1-0"]
[WhiteElo "2697"]
[BlackElo "2562"]
[TimeControl "180+1"]
[EndTime "15:58:26 PST"]
[Termination "chess94cu won on time"]

1. Nf3 {[%clk 0:03:00.9]} 1... d5 {[%clk 0:02:59.7]} 2. c4 {[%clk 0:03:00.6]}
2... e6 {[%clk 0:03:00]} 3. e3 {[%clk 0:03:00.7]} 3... Nf6 {[%clk 0:02:55.1]} 4.
Nc3 {[%clk 0:03:01.3]} 4... c5 {[%clk 0:02:53.3]} 5. cxd5 {[%clk 0:02:59.9]}
5... exd5 {[%clk 0:02:53.2]} 6. d4 {[%clk 0:02:59.7]} 6... cxd4 {[%clk
0:02:52.9]} 7. Nxd4 {[%clk 0:02:59.5]} 7... Nc6 {[%clk 0:02:53.1]} 8. Bb5 {[%clk
0:02:57.1]} 8... Bd7 {[%clk 0:02:52.9]} 9. O-O {[%clk 0:02:57.6]} 9... Bd6
{[%clk 0:02:52.3]} 10. Nf3 {[%clk 0:02:53.5]} 10... Bg4 {[%clk 0:02:49.5]} 11.
Be2 {[%clk 0:02:48.1]} 11... O-O {[%clk 0:02:49.1]} 12. h3 {[%clk 0:02:43]}
12... Be6 {[%clk 0:02:48]} 13. b3 {[%clk 0:02:42.3]} 13... Re8 {[%clk
0:02:44.7]} 14. Bb2 {[%clk 0:02:42.3]} 14... Rc8 {[%clk 0:02:44.4]} 15. Rc1
{[%clk 0:02:42.9]} 15... Qe7 {[%clk 0:02:42.4]} 16. Nb5 {[%clk 0:02:37.3]} 16...
Bc5 {[%clk 0:02:42.2]} 17. Nbd4 {[%clk 0:02:34.3]} 17... Ba3 {[%clk 0:02:40.7]}
18. Nxc6 {[%clk 0:02:24.7]} 18... bxc6 {[%clk 0:02:39.6]} 19. Qc2 {[%clk
0:02:22.3]} 19... Bxb2 {[%clk 0:02:38.8]} 20. Qxb2 {[%clk 0:02:23.2]} 20... c5
{[%clk 0:02:38.5]} 21. Rfd1 {[%clk 0:02:23.7]} 21... Rc7 {[%clk 0:02:34]} 22.
Qa3 {[%clk 0:02:16]} 22... Rec8 {[%clk 0:02:26.2]} 23. Ba6 {[%clk 0:02:14.1]}
23... Rb8 {[%clk 0:02:24.5]} 24. Rd2 {[%clk 0:02:09.2]} 24... Rb6 {[%clk
0:02:22.2]} 25. Bf1 {[%clk 0:02:07.3]} 25... Rbc6 {[%clk 0:02:09]} 26. Rdc2
{[%clk 0:02:07]} 26... Bf5 {[%clk 0:02:02.9]} 27. Bb5 {[%clk 0:01:36.5]} 27...
Bxc2 {[%clk 0:01:55.5]} 28. Bxc6 {[%clk 0:01:35.8]} 28... Rxc6 {[%clk
0:01:43.1]} 29. Rxc2 {[%clk 0:01:35.3]} 29... Qc7 {[%clk 0:01:38.9]} 30. Qa4
{[%clk 0:01:23.5]} 30... h6 {[%clk 0:01:37.5]} 31. Nd4 {[%clk 0:01:14.9]} 31...
Rb6 {[%clk 0:01:32.7]} 32. Qa5 {[%clk 0:01:10.1]} 32... c4 {[%clk 0:01:15.7]}
33. g3 {[%clk 0:01:09.8]} 33... Qb7 {[%clk 0:01:09.3]} 34. Qe1 {[%clk
0:00:34.9]} 34... Ne4 {[%clk 0:01:06.1]} 35. Qe2 {[%clk 0:00:33.2]} 35... g6
{[%clk 0:00:52.8]} 36. h4 {[%clk 0:00:31.1]} 36... h5 {[%clk 0:00:51.7]} 37. Qe1
{[%clk 0:00:23.2]} 37... cxb3 {[%clk 0:00:41.1]} 38. axb3 {[%clk 0:00:23.2]}
38... Rf6 {[%clk 0:00:32.6]} 39. Qc1 {[%clk 0:00:22.6]} 39... Kg7 {[%clk
0:00:30.1]} 40. Qa1 {[%clk 0:00:20.9]} 40... Kh7 {[%clk 0:00:29.5]} 41. Kg2
{[%clk 0:00:16.6]} 41... Qd7 {[%clk 0:00:28.6]} 42. Qd1 {[%clk 0:00:13.4]} 42...
Qb7 {[%clk 0:00:19.2]} 43. f3 {[%clk 0:00:13.4]} 43... Nd6 {[%clk 0:00:18.8]}
44. Qa1 {[%clk 0:00:12.5]} 44... Qe7 {[%clk 0:00:15.1]} 45. Qc3 {[%clk
0:00:11.3]} 45... Nf5 {[%clk 0:00:12.2]} 46. Nxf5 {[%clk 0:00:11.2]} 46... Rxf5
{[%clk 0:00:13.1]} 47. Qd4 {[%clk 0:00:09.5]} 47... Re5 {[%clk 0:00:13.1]} 48.
Kf2 {[%clk 0:00:08.9]} 48... Rf5 {[%clk 0:00:08.5]} 49. Ra2 {[%clk 0:00:09.1]}
49... Qe5 {[%clk 0:00:05]} 50. Qxe5 {[%clk 0:00:08.7]} 50... Rxe5 {[%clk
0:00:05.9]} 51. Rxa7 {[%clk 0:00:09.1]} 51... Kg7 {[%clk 0:00:06.6]} 52. Rd7
{[%clk 0:00:09]} 52... Kf6 {[%clk 0:00:03.7]} 53. b4 {[%clk 0:00:07.9]} 53...
Kg7 {[%clk 0:00:02.1]} 54. Ke2 {[%clk 0:00:07.7]} 54... Kf6 {[%clk 0:00:02.2]}
55. Kd3 {[%clk 0:00:08.4]} 55... Re6 {[%clk 0:00:02.4]} 56. Rxd5 {[%clk
0:00:07.7]} 56... Ra6 {[%clk 0:00:03.3]} 57. Ra5 {[%clk 0:00:07.5]} 57... Rc6
{[%clk 0:00:03.1]} 58. b5 {[%clk 0:00:07.3]} 58... Rc1 {[%clk 0:00:03.5]} 59.
Ra6+ {[%clk 0:00:07.7]} 59... Kg7 {[%clk 0:00:03.7]} 60. b6 {[%clk 0:00:07.3]}
60... Rg1 {[%clk 0:00:03.7]} 61. b7 {[%clk 0:00:07]} 61... Rb1 {[%clk
0:00:04.3]} 62. Ra7 {[%clk 0:00:07.6]} 62... g5 {[%clk 0:00:04.2]} 63. hxg5
{[%clk 0:00:07.3]} 63... Kg6 {[%clk 0:00:04.6]} 64. f4 {[%clk 0:00:07.6]} 64...
Kf5 {[%clk 0:00:05.1]} 65. Kd4 {[%clk 0:00:07.8]} 65... Kg4 {[%clk 0:00:05.4]}
66. Ke5 {[%clk 0:00:08.4]} 66... Kxg3 {[%clk 0:00:05.2]} 67. Kf6 {[%clk
0:00:08.4]} 67... h4 {[%clk 0:00:05.3]} 68. Kxf7 {[%clk 0:00:07.8]} 68... h3
{[%clk 0:00:04.5]} 69. Ra2 {[%clk 0:00:07.9]} 69... Rxb7+ {[%clk 0:00:03.6]} 70.
Kf6 {[%clk 0:00:08.5]} 70... Rb6+ {[%clk 0:00:03.7]} 71. Kf5 {[%clk 0:00:08.7]}
71... Rb5+ {[%clk 0:00:04.1]} 72. Kg6 {[%clk 0:00:09.4]} 72... Rb1 {[%clk
0:00:04.1]} 73. f5 {[%clk 0:00:09]} 73... Rg1 {[%clk 0:00:04.1]} 74. f6 {[%clk
0:00:08.8]} 74... Rg2 {[%clk 0:00:05]} 75. Ra1 {[%clk 0:00:08.8]} 75... h2
{[%clk 0:00:05.2]} 76. f7 {[%clk 0:00:09.5]} 76... Rg1 {[%clk 0:00:05.4]} 77.
Rxg1+ {[%clk 0:00:10.1]} 77... hxg1=Q {[%clk 0:00:05.3]} 78. f8=Q {[%clk
0:00:11]} 78... Qxe3 {[%clk 0:00:05.8]} 79. Qd6+ {[%clk 0:00:11.2]} 79... Kh3
{[%clk 0:00:05.4]} 80. Qd7+ {[%clk 0:00:11.3]} 80... Kg3 {[%clk 0:00:05.3]} 81.
Kh6 {[%clk 0:00:11.6]} 81... Kh4 {[%clk 0:00:03.7]} 82. Qd8 {[%clk 0:00:09.3]}
82... Qf4 {[%clk 0:00:03]} 83. Qf6 {[%clk 0:00:09]} 83... Qg4 {[%clk 0:00:02.1]}
84. g6+ {[%clk 0:00:08]} 84... Kh3 {[%clk 0:00:01.6]} 85. g7 {[%clk 0:00:08.5]}
1-0

[Event "Late-Titled-Tuesday-Blitz-February-27-2024"]
[Site "Chess.com"]
[Date "2024.02.27"]
[Round "11"]
[White "xasid81"]
[Black "Felix-Rose"]
[Result "1-0"]
[WhiteElo "2584"]
[BlackElo "2285"]
[TimeControl "180+1"]
[EndTime "16:01:22 PST"]
[Termination "xasid81 won by resignation"]

1. g3 {[%clk 0:03:00.9]} 1... d5 {[%clk 0:02:57.9]} 2. Bg2 {[%clk 0:03:01]} 2...
e6 {[%clk 0:02:58.6]} 3. c4 {[%clk 0:03:01.2]} 3... dxc4 {[%clk 0:02:58.2]} 4.
Nf3 {[%clk 0:03:00.2]} 4... Nf6 {[%clk 0:02:58.2]} 5. O-O {[%clk 0:03:00.4]}
5... c5 {[%clk 0:02:55.6]} 6. Na3 {[%clk 0:03:00]} 6... Bd7 {[%clk 0:02:47.1]}
7. Nxc4 {[%clk 0:02:59.1]} 7... Bc6 {[%clk 0:02:46.7]} 8. Nce5 {[%clk
0:02:57.4]} 8... Bd5 {[%clk 0:02:43.5]} 9. d3 {[%clk 0:02:50.2]} 9... b5 {[%clk
0:02:31.6]} 10. e4 {[%clk 0:02:49.1]} 10... Bb7 {[%clk 0:02:29.3]} 11. Ng5
{[%clk 0:02:48.9]} 11... Qc7 {[%clk 0:02:08.1]} 12. Nexf7 {[%clk 0:02:44.9]}
12... Rg8 {[%clk 0:02:01.1]} 13. Bf4 {[%clk 0:02:44.5]} 13... Qb6 {[%clk
0:01:55.8]} 14. Ne5 {[%clk 0:02:27.8]} 14... Bd6 {[%clk 0:01:51.9]} 15. Nxh7
{[%clk 0:02:27.3]} 1-0

[Event "Late-Titled-Tuesday-Blitz-February-27-2024"]
[Site "Chess.com"]
[Date "2024.02.27"]
[Round "11"]
[White "dolynachess"]
[Black "Zavgorodniy_Sergiy"]
[Result "1/2-1/2"]
[WhiteElo "2494"]
[BlackElo "2617"]
[TimeControl "180+1"]
[EndTime "16:01:45 PST"]
[Termination "Game drawn by repetition"]

1. d4 {[%clk 0:02:55.4]} 1... d5 {[%clk 0:03:00.1]} 2. c4 {[%clk 0:02:55.6]}
2... dxc4 {[%clk 0:03:01]} 3. Nf3 {[%clk 0:02:56.1]} 3... Nf6 {[%clk 0:03:01.1]}
4. g3 {[%clk 0:02:56.1]} 4... b6 {[%clk 0:02:59.3]} 5. Bg2 {[%clk 0:02:51.5]}
5... Bb7 {[%clk 0:02:59.8]} 6. O-O {[%clk 0:02:51.7]} 6... e6 {[%clk 0:03:00.3]}
7. Qa4+ {[%clk 0:02:48.4]} 7... Nbd7 {[%clk 0:03:00.1]} 8. Nc3 {[%clk
0:02:47.2]} 8... a6 {[%clk 0:02:54.3]} 9. Qxc4 {[%clk 0:02:46.3]} 9... b5 {[%clk
0:02:49.4]} 10. Qd3 {[%clk 0:02:45.2]} 10... c5 {[%clk 0:02:49.7]} 11. Rd1
{[%clk 0:02:41.4]} 11... Qb6 {[%clk 0:02:48]} 12. Be3 {[%clk 0:02:30.2]} 12...
cxd4 {[%clk 0:02:40.5]} 13. Bxd4 {[%clk 0:02:24.4]} 13... Bc5 {[%clk 0:02:40.4]}
14. a4 {[%clk 0:02:03]} 14... Bxd4 {[%clk 0:02:34.6]} 15. Qxd4 {[%clk
0:02:01.7]} 15... Qxd4 {[%clk 0:02:34.5]} 16. Nxd4 {[%clk 0:01:53.8]} 16... Bxg2
{[%clk 0:02:34.3]} 17. Kxg2 {[%clk 0:01:54.7]} 17... bxa4 {[%clk 0:02:33.8]} 18.
Rxa4 {[%clk 0:01:50.6]} 18... O-O {[%clk 0:02:33.2]} 19. Nc6 {[%clk 0:01:44.2]}
19... Nc5 {[%clk 0:02:22.6]} 20. Ra5 {[%clk 0:01:41.6]} 20... Nb7 {[%clk
0:02:19.7]} 21. Ra4 {[%clk 0:01:38.2]} 21... Nc5 {[%clk 0:02:19.2]} 22. Ra5
{[%clk 0:01:38.5]} 22... Nb7 {[%clk 0:02:19.4]} 23. Ra4 {[%clk 0:01:37.2]} 23...
Nc5 {[%clk 0:02:19.3]} 1/2-1/2

[Event "Late-Titled-Tuesday-Blitz-February-27-2024"]
[Site "Chess.com"]
[Date "2024.02.27"]
[Round "11"]
[White "grzechu96"]
[Black "MKlose11"]
[Result "0-1"]
[WhiteElo "2735"]
[BlackElo "2641"]
[TimeControl "180+1"]
[EndTime "16:02:46 PST"]
[Termination "MKlose11 won by resignation"]

1. e4 {[%clk 0:03:00.9]} 1... e6 {[%clk 0:02:59.8]} 2. d4 {[%clk 0:03:00.7]}
2... d5 {[%clk 0:03:00.7]} 3. Nc3 {[%clk 0:03:01.2]} 3... Bb4 {[%clk 0:02:58.8]}
4. exd5 {[%clk 0:03:01.4]} 4... exd5 {[%clk 0:02:50]} 5. Bd3 {[%clk 0:03:01.8]}
5... Nc6 {[%clk 0:02:50.2]} 6. a3 {[%clk 0:03:01.9]} 6... Bxc3+ {[%clk
0:02:50.1]} 7. bxc3 {[%clk 0:03:02.8]} 7... Nce7 {[%clk 0:02:50.6]} 8. Qf3
{[%clk 0:03:02.6]} 8... Nf6 {[%clk 0:02:51]} 9. Ne2 {[%clk 0:03:02.6]} 9... Ne4
{[%clk 0:02:51.2]} 10. Ng3 {[%clk 0:02:45.3]} 10... f5 {[%clk 0:02:44.4]} 11. c4
{[%clk 0:02:43.6]} 11... c6 {[%clk 0:02:42.7]} 12. cxd5 {[%clk 0:02:43.1]} 12...
cxd5 {[%clk 0:02:43.6]} 13. O-O {[%clk 0:02:42.8]} 13... O-O {[%clk 0:02:43.3]}
14. c4 {[%clk 0:02:43.1]} 14... Be6 {[%clk 0:02:41.7]} 15. Bf4 {[%clk
0:02:25.8]} 15... dxc4 {[%clk 0:02:37.5]} 16. Bxe4 {[%clk 0:02:24.7]} 16... fxe4
{[%clk 0:02:37.8]} 17. Qxe4 {[%clk 0:02:24.4]} 17... Bd5 {[%clk 0:02:35.9]} 18.
Qe3 {[%clk 0:02:24.8]} 18... Nf5 {[%clk 0:02:28.6]} 19. Nxf5 {[%clk 0:02:24.7]}
19... Rxf5 {[%clk 0:02:28.4]} 20. f3 {[%clk 0:02:24]} 20... Qd7 {[%clk
0:02:24.8]} 21. Be5 {[%clk 0:02:24.3]} 21... b5 {[%clk 0:02:24.6]} 22. Qc3
{[%clk 0:02:16.7]} 22... h6 {[%clk 0:02:18.7]} 23. a4 {[%clk 0:02:10.1]} 23...
a6 {[%clk 0:02:15.2]} 24. axb5 {[%clk 0:02:10.1]} 24... axb5 {[%clk 0:02:15.2]}
25. Qb4 {[%clk 0:02:08.9]} 25... Rff8 {[%clk 0:02:12.7]} 26. Rab1 {[%clk
0:02:04.1]} 26... Bc6 {[%clk 0:02:10.5]} 27. Rfe1 {[%clk 0:02:02.6]} 27... Ra2
{[%clk 0:02:08.7]} 28. Rb2 {[%clk 0:01:39.2]} 28... Rfa8 {[%clk 0:02:01.5]} 29.
Rxa2 {[%clk 0:01:27.9]} 29... Rxa2 {[%clk 0:01:59.7]} 30. Qc5 {[%clk 0:01:28.7]}
30... Rxg2+ {[%clk 0:01:55.9]} 31. Kxg2 {[%clk 0:01:26.3]} 31... Qg4+ {[%clk
0:01:55.8]} 32. Bg3 {[%clk 0:01:24.7]} 32... Qxf3+ {[%clk 0:01:55.7]} 33. Kh3
{[%clk 0:01:24.4]} 33... Bd7+ {[%clk 0:01:55]} 0-1

[Event "Late-Titled-Tuesday-Blitz-February-27-2024"]
[Site "Chess.com"]
[Date "2024.02.27"]
[Round "11"]
[White "Mikayel99"]
[Black "lucasmito"]
[Result "1-0"]
[WhiteElo "2578"]
[BlackElo "2797"]
[TimeControl "180+1"]
[EndTime "16:02:58 PST"]
[Termination "Mikayel99 won by checkmate"]

1. d4 {[%clk 0:02:56.1]} 1... d5 {[%clk 0:02:58.2]} 2. Nf3 {[%clk 0:02:55.5]}
2... Nf6 {[%clk 0:02:58.4]} 3. g3 {[%clk 0:02:55.8]} 3... e6 {[%clk 0:02:57.8]}
4. Bg2 {[%clk 0:02:54.9]} 4... b5 {[%clk 0:02:56]} 5. O-O {[%clk 0:02:54.6]}
5... Bb7 {[%clk 0:02:56.6]} 6. a4 {[%clk 0:02:54.3]} 6... b4 {[%clk 0:02:56.3]}
7. c4 {[%clk 0:02:54.7]} 7... bxc3 {[%clk 0:02:53.4]} 8. bxc3 {[%clk 0:02:52.7]}
8... Be7 {[%clk 0:02:53.5]} 9. Ne5 {[%clk 0:02:53]} 9... Nbd7 {[%clk 0:02:51.9]}
10. c4 {[%clk 0:02:52.2]} 10... O-O {[%clk 0:02:48.2]} 11. Nc3 {[%clk
0:02:47.7]} 11... c5 {[%clk 0:02:22.5]} 12. Nxd7 {[%clk 0:02:29.2]} 12... Qxd7
{[%clk 0:02:20.5]} 13. dxc5 {[%clk 0:02:24.2]} 13... Bxc5 {[%clk 0:02:17]} 14.
cxd5 {[%clk 0:02:24.7]} 14... Nxd5 {[%clk 0:01:52.7]} 15. Nxd5 {[%clk
0:02:19.8]} 15... Bc6 {[%clk 0:01:36]} 16. Nf4 {[%clk 0:02:05.4]} 16... Qb7
{[%clk 0:01:34.7]} 17. Bxc6 {[%clk 0:01:58.9]} 17... Qxc6 {[%clk 0:01:35.6]} 18.
Ba3 {[%clk 0:01:58.1]} 18... Bxa3 {[%clk 0:01:33.7]} 19. Rxa3 {[%clk 0:01:56.1]}
19... g6 {[%clk 0:01:34.4]} 20. Qc1 {[%clk 0:01:54.7]} 20... Qe4 {[%clk
0:01:33.2]} 21. Qe3 {[%clk 0:01:53.4]} 21... Qf5 {[%clk 0:01:33.7]} 22. Qd3
{[%clk 0:01:49.8]} 22... Qg4 {[%clk 0:01:33.3]} 23. Qf3 {[%clk 0:01:49.1]} 23...
Qf5 {[%clk 0:01:32.7]} 24. Nd3 {[%clk 0:01:46.9]} 24... Qg5 {[%clk 0:01:32.9]}
25. Qf4 {[%clk 0:01:45.2]} 25... Qe7 {[%clk 0:01:33.5]} 26. Rb3 {[%clk
0:01:40.7]} 26... Rfd8 {[%clk 0:01:34]} 27. Rfb1 {[%clk 0:01:39.7]} 27... Rd7
{[%clk 0:01:33.5]} 28. Rb8+ {[%clk 0:01:39.4]} 28... Rxb8 {[%clk 0:01:33]} 29.
Rxb8+ {[%clk 0:01:38.4]} 29... Kg7 {[%clk 0:01:33.9]} 30. Qe5+ {[%clk
0:01:36.2]} 30... f6 {[%clk 0:01:34.4]} 31. Qc5 {[%clk 0:01:36.5]} 31... Qf7
{[%clk 0:01:34.7]} 32. Rc8 {[%clk 0:01:35.1]} 32... e5 {[%clk 0:01:34.7]} 33.
Qc4 {[%clk 0:01:34.1]} 33... Qe7 {[%clk 0:01:34.6]} 34. Rg8+ {[%clk 0:01:32.8]}
34... Kh6 {[%clk 0:01:35.3]} 35. Qh4# {[%clk 0:01:33.4]} 1-0

[Event "Late-Titled-Tuesday-Blitz-February-27-2024"]
[Site "Chess.com"]
[Date "2024.02.27"]
[Round "11"]
[White "BabageldiAnnaberdiyev"]
[Black "toninhojit"]
[Result "1-0"]
[WhiteElo "2628"]
[BlackElo "2467"]
[TimeControl "180+1"]
[EndTime "16:03:21 PST"]
[Termination "BabageldiAnnaberdiyev won by resignation"]

1. e4 {[%clk 0:03:00.9]} 1... e5 {[%clk 0:02:59.5]} 2. Nf3 {[%clk 0:03:00.3]}
2... Nc6 {[%clk 0:03:00.2]} 3. Bc4 {[%clk 0:03:00.4]} 3... Nf6 {[%clk
0:03:00.5]} 4. d4 {[%clk 0:02:59.6]} 4... exd4 {[%clk 0:02:59.8]} 5. O-O {[%clk
0:03:00.2]} 5... d6 {[%clk 0:02:59.4]} 6. Nxd4 {[%clk 0:02:59.7]} 6... Be7
{[%clk 0:02:59.3]} 7. Nc3 {[%clk 0:02:59.6]} 7... O-O {[%clk 0:02:59]} 8. Bf4
{[%clk 0:02:59.5]} 8... Bd7 {[%clk 0:02:59.1]} 9. h3 {[%clk 0:02:58.6]} 9...
Nxd4 {[%clk 0:02:59.4]} 10. Qxd4 {[%clk 0:02:57.7]} 10... Bc6 {[%clk 0:03:00.3]}
11. Rfe1 {[%clk 0:02:57.8]} 11... Nd7 {[%clk 0:03:00.1]} 12. a4 {[%clk
0:02:46.3]} 12... Bf6 {[%clk 0:03:00.1]} 13. Qd2 {[%clk 0:02:45.3]} 13... Re8
{[%clk 0:02:56.4]} 14. Bd5 {[%clk 0:02:43.5]} 14... Bxc3 {[%clk 0:02:54]} 15.
Qxc3 {[%clk 0:02:28.8]} 15... Bxd5 {[%clk 0:02:51.4]} 16. exd5 {[%clk
0:02:29.7]} 16... Rxe1+ {[%clk 0:02:36.2]} 17. Rxe1 {[%clk 0:02:30.6]} 17... h6
{[%clk 0:02:26.8]} 18. Re3 {[%clk 0:02:09.1]} 18... Nf6 {[%clk 0:02:24]} 19. Rg3
{[%clk 0:02:04.7]} 19... Kf8 {[%clk 0:02:13.6]} 20. Rf3 {[%clk 0:01:39]} 20...
Nxd5 {[%clk 0:01:59.5]} 21. Qb3 {[%clk 0:01:38.3]} 21... Nxf4 {[%clk 0:01:59.3]}
22. Rxf4 {[%clk 0:01:39.2]} 22... Qe8 {[%clk 0:01:45.4]} 23. Qxb7 {[%clk
0:01:38.6]} 23... Rb8 {[%clk 0:01:45.9]} 24. Qxc7 {[%clk 0:01:37]} 24... Rxb2
{[%clk 0:01:46]} 25. Qxd6+ {[%clk 0:01:32.5]} 25... Kg8 {[%clk 0:01:45.1]} 26.
Qc7 {[%clk 0:01:31.3]} 26... g5 {[%clk 0:01:35.3]} 27. Rd4 {[%clk 0:01:24.6]}
27... Kg7 {[%clk 0:01:26.9]} 28. Qc3 {[%clk 0:01:18]} 28... Rb1+ {[%clk
0:01:23.8]} 29. Rd1+ {[%clk 0:01:16]} 29... Qe5 {[%clk 0:01:21.8]} 30. Qxe5+
{[%clk 0:01:15]} 1-0

[Event "Late-Titled-Tuesday-Blitz-February-27-2024"]
[Site "Chess.com"]
[Date "2024.02.27"]
[Round "11"]
[White "rcmz"]
[Black "PapaieDudu"]
[Result "0-1"]
[WhiteElo "2223"]
[BlackElo "2373"]
[TimeControl "180+1"]
[EndTime "16:03:29 PST"]
[Termination "PapaieDudu won on time"]

1. b4 {[%clk 0:03:00.9]} 1... b5 {[%clk 0:02:57.4]} 2. Bb2 {[%clk 0:03:00]} 2...
Bb7 {[%clk 0:02:57.5]} 3. e3 {[%clk 0:02:58.5]} 3... e6 {[%clk 0:02:57.4]} 4.
Nf3 {[%clk 0:02:56.7]} 4... Nf6 {[%clk 0:02:57.3]} 5. a3 {[%clk 0:02:56.2]} 5...
a6 {[%clk 0:02:57.5]} 6. c4 {[%clk 0:02:54.8]} 6... c5 {[%clk 0:02:57.3]} 7.
bxc5 {[%clk 0:02:52.4]} 7... bxc4 {[%clk 0:02:57.1]} 8. Bxc4 {[%clk 0:02:51.4]}
8... Bxc5 {[%clk 0:02:57.4]} 9. O-O {[%clk 0:02:50.6]} 9... O-O {[%clk
0:02:57.8]} 10. d4 {[%clk 0:02:49.3]} 10... d5 {[%clk 0:02:57.9]} 11. Bd3 {[%clk
0:02:35.8]} 11... Bd6 {[%clk 0:02:58]} 12. Qc2 {[%clk 0:02:34.1]} 12... Nc6
{[%clk 0:02:52]} 13. Nbd2 {[%clk 0:02:32]} 13... Rc8 {[%clk 0:02:51.4]} 14. Qb1
{[%clk 0:02:31.3]} 14... Re8 {[%clk 0:02:51.6]} 15. Ne5 {[%clk 0:02:29.8]} 15...
Bxe5 {[%clk 0:02:52.1]} 16. dxe5 {[%clk 0:02:29.6]} 16... Nd7 {[%clk 0:02:53]}
17. f4 {[%clk 0:02:28.8]} 17... Qb6 {[%clk 0:02:52.4]} 18. Bxh7+ {[%clk
0:02:26.2]} 18... Kf8 {[%clk 0:02:50.4]} 19. Rf3 {[%clk 0:02:19.3]} 19... Rb8
{[%clk 0:02:50]} 20. Bc3 {[%clk 0:02:13.4]} 20... Qc5 {[%clk 0:02:49.6]} 21. Bb4
{[%clk 0:01:48]} 21... Nxb4 {[%clk 0:02:49.4]} 22. axb4 {[%clk 0:01:48]} 22...
Qc3 {[%clk 0:02:48.4]} 23. Nf1 {[%clk 0:01:44.4]} 23... d4 {[%clk 0:02:48.7]}
24. Be4 {[%clk 0:01:42.3]} 24... Bxe4 {[%clk 0:02:44]} 25. Qxe4 {[%clk
0:01:41.5]} 25... Qxa1 {[%clk 0:02:43.9]} 26. exd4 {[%clk 0:01:33.8]} 26... Rxb4
{[%clk 0:02:43.7]} 27. Rd3 {[%clk 0:01:33.7]} 27... Nb6 {[%clk 0:02:43]} 28. Qc6
{[%clk 0:01:31.6]} 28... Nd5 {[%clk 0:02:42.7]} 29. Qd6+ {[%clk 0:01:23.9]}
29... Kg8 {[%clk 0:02:42.9]} 30. Qd7 {[%clk 0:01:21.9]} 30... Rf8 {[%clk
0:02:42.2]} 31. f5 {[%clk 0:01:19.3]} 31... Rxd4 {[%clk 0:02:41.4]} 32. Rg3
{[%clk 0:01:18.5]} 32... Rf4 {[%clk 0:02:37.7]} 33. Rf3 {[%clk 0:01:18]} 33...
Rxf3 {[%clk 0:02:36.9]} 0-1

[Event "Late-Titled-Tuesday-Blitz-February-27-2024"]
[Site "Chess.com"]
[Date "2024.02.27"]
[Round "11"]
[White "DraningWaterHi"]
[Black "ural58"]
[Result "0-1"]
[WhiteElo "2247"]
[BlackElo "2490"]
[TimeControl "180+1"]
[EndTime "16:03:35 PST"]
[Termination "ural58 won by resignation"]

1. d4 {[%clk 0:03:00.9]} 1... d5 {[%clk 0:02:57.4]} 2. Bf4 {[%clk 0:03:00]} 2...
Nf6 {[%clk 0:02:56.4]} 3. e3 {[%clk 0:02:59.9]} 3... c5 {[%clk 0:02:56]} 4. Nf3
{[%clk 0:03:00.5]} 4... Bd7 {[%clk 0:02:53.1]} 5. c4 {[%clk 0:02:53.4]} 5... Nc6
{[%clk 0:02:37.5]} 6. Nc3 {[%clk 0:02:51.5]} 6... cxd4 {[%clk 0:02:34.5]} 7.
exd4 {[%clk 0:02:51.1]} 7... e6 {[%clk 0:02:14.6]} 8. c5 {[%clk 0:02:46]} 8...
b6 {[%clk 0:01:59.3]} 9. Nb5 {[%clk 0:02:44.9]} 9... Rc8 {[%clk 0:01:45.6]} 10.
Nd6+ {[%clk 0:02:43.6]} 10... Bxd6 {[%clk 0:01:45]} 11. Bxd6 {[%clk 0:02:43.5]}
11... Ne4 {[%clk 0:01:43]} 12. Ba6 {[%clk 0:02:40.6]} 12... Nxd6 {[%clk
0:01:42.2]} 13. cxd6 {[%clk 0:02:41.1]} 13... Rb8 {[%clk 0:01:39.4]} 14. Qd2
{[%clk 0:02:39.9]} 14... O-O {[%clk 0:01:38.5]} 15. Ne5 {[%clk 0:02:37.8]} 15...
f6 {[%clk 0:01:36.2]} 16. Nxc6 {[%clk 0:02:24.5]} 16... Bxc6 {[%clk 0:01:34.7]}
17. Qb4 {[%clk 0:02:23.5]} 17... b5 {[%clk 0:01:32.7]} 18. a4 {[%clk 0:02:18.1]}
18... bxa4 {[%clk 0:01:32.6]} 19. Qc5 {[%clk 0:02:18.2]} 19... Qb6 {[%clk
0:01:30.3]} 20. O-O {[%clk 0:02:15.8]} 20... Qxa6 {[%clk 0:01:29.7]} 21. Rfc1
{[%clk 0:02:12.8]} 21... Bd7 {[%clk 0:01:17.5]} 22. Qc7 {[%clk 0:02:10.8]} 22...
Rfd8 {[%clk 0:01:15.9]} 23. Rc5 {[%clk 0:02:09.3]} 23... Qb6 {[%clk 0:01:15.1]}
24. h4 {[%clk 0:02:05.5]} 24... Qxb2 {[%clk 0:01:14.6]} 25. Rac1 {[%clk
0:02:05]} 25... Qxd4 {[%clk 0:01:14.4]} 26. Qxa7 {[%clk 0:02:01.7]} 26... Ra8
{[%clk 0:01:00.1]} 27. Qc7 {[%clk 0:02:00.3]} 27... a3 {[%clk 0:00:59]} 28. Ra5
{[%clk 0:01:58.1]} 28... a2 {[%clk 0:00:54.6]} 29. Rxa2 {[%clk 0:01:57.7]} 29...
Rac8 {[%clk 0:00:47]} 30. Ra8 {[%clk 0:01:45]} 30... Rxa8 {[%clk 0:00:45.9]} 31.
Qb6 {[%clk 0:01:42.8]} 31... Qxb6 {[%clk 0:00:44.7]} 0-1